Cogmind - Beta 16.1 *** ADVENTURER MODE // 2026.02.15 @ 18:10:45 Player: Zable Result: Destroyed by DS-QCW(R) with Subdweller Laser Performance ------------- Evolutions (0) 0 Regions Visited (3) 600 Robots Destroyed (22) 110 Value Destroyed (422) 422 Prototype IDs (0) 0 Alien Tech Used (0) 0 Bonus (0) 0 TOTAL SCORE: 1132 Bonus ------- None Cogmind --------- Core Integrity 0/250 Matter 294/300 Energy 198/200 System Corruption 0% Temperature Cool (6) Movement Rolling (100) Location -10/Subcaves Parts ------- > --- POWER (1) -------- Subdweller Power Source > --- PROPULSION (2) --- Compact Wheel Flight Unit > --- UTILITY (2) ------ Small Storage Unit Sensor Array > --- WEAPON (2) ------- Makeshift Laser Makeshift Sword > --- INVENTORY (8) ---- Light Ion Engine Scrap Suit Sensor Array Signal Interpreter Improved Terrain Scanner ECM Suite Mining Laser Peak State ------------ > --- POWER ------------ Subdweller Power Source > --- PROPULSION ------- Compact Wheel Flight Unit > --- UTILITY ---------- Small Storage Unit Sensor Array > --- WEAPON ----------- Makeshift Laser Makeshift Sword > --- INVENTORY -------- Light Ion Engine Scrap Suit Sensor Array Signal Interpreter Improved Terrain Scanner ECM Suite Mining Laser [Rating: 15] Favorites ----------- Power Light Ion Engine Engine Light Ion Engine Power Core Light Nuclear Core Propulsion Compact Wheel Treads Light Treads Wheel Compact Wheel Flight Unit Flight Unit Utility Small Storage Unit Device Sensor Array Storage Small Storage Unit Weapon Particle Gun Energy Gun Particle Gun Ballistic Gun Assault Rifle Slashing Weapon Makeshift Sword Build | -11 -10 -10 -10 ------- Run | Yrd Mat Min Sub Slots Evolved . | . . . . Power . | . . . . Propulsion . | . . . . Utility . | . . . . Weapon . | . . . . Parts Attached 16 | 7 3 3 3 Power 3 | 1 . 1 1 Engine 2 | 1 . . 1 Core 1 | . . 1 . Reactor . | . . . . Propulsion 4 | 2 . 1 1 Treads 1 | 1 . . . Leg . | . . . . Wheel 2 | 1 . 1 . Hover . | . . . . Flight 1 | . . . 1 Utility 4 | 2 2 . . Device 3 | 1 2 . . Storage 1 | 1 . . . Processor . | . . . . Hackware . | . . . . Protection . | . . . . Artifact . | . . . . Weapon 5 | 2 1 1 1 Energy Gun 2 | . 1 . 1 Energy Cannon . | . . . . Ballistic Gun 2 | 2 . . . Ballistic Cannon . | . . . . Launcher . | . . . . Special Weapon . | . . . . Impact Weapon . | . . . . Slashing Weapon 1 | . . 1 . Piercing Weapon . | . . . . Special Melee Weapon . | . . . . Unidentified Prototypes . | . . . . Parts Lost 3 | . . 2 1 Power 1 | . . 1 . Propulsion 2 | . . 1 1 Utility . | . . . . Weapon . | . . . . Highest Loss Streak 2 | . . 2 1 To Critical Strikes . | . . . . Average Backups 7 | 4 7 7 7 Power 1 | . 1 1 1 Propulsion 1 | 2 2 . . Utility 3 | . 2 4 5 Weapon . | . 1 1 1 Tool/Special . | . . . . Unused Backups 10 | . 4 1 5 Power 2 | . 1 . 1 Propulsion 3 | . 2 1 . Utility 3 | . . . 3 Weapon 2 | . 1 . 1 Tool/Special . | . . . . Average Slot Usage (%) 97 | . 96 99 95 Engine 8 | . 14 4 12 Core 5 | . . 9 1 Treads 10 | . 14 14 . Wheel 13 | . 14 13 14 Flight 2 | . . . 9 Device 13 | . 14 14 13 Storage 14 | . 14 14 14 Energy Gun 11 | . 4 14 14 Ballistic Gun 5 | . 19 2 . Slashing Weapon 9 | . . 11 14 Peak Build Rating 15 | 9 9 14 15 Average Rating 11 | 5 8 12 13 On Entrance 8 | . 9 9 14 Avg Prop Armor Cover (%) 13 | 12 13 15 6 Naked Turns . | . . . . Heaviest Build 16 | 13 14 16 16 Greatest Support 16 | 16 16 16 16 Greatest Overweight (x) 4 | 3 . 4 3 Average Overweight (x) . | . . . . Largest Inventory Capacity 8 | 8 8 8 8 Average Capacity 7 | 7 8 8 8 Most Carried 8 | 6 8 8 8 Average Carried 7 | 4 7 7 8 Final Capacity 8 | 8 8 8 8 Final Carried 8 | 6 8 8 8 Class Distribution -------------------- 100% | Mutant Dominant Class ---------------- Mutant | -10/Materials Mutant | -10/Mines Mutant | -10/Subcaves Resources | -11 -10 -10 -10 ----------- Run | Yrd Mat Min Sub Matter Collected 447 | 119 139 155 34 Remotely . | . . . . Salvage Created 522 | 32 139 204 147 Parts 53 | 5 9 24 15 Haulers Intercepted . | . . . . Recyclers Shooed . | . . . . Parts Field Recycled . | . . . . Retrieved Matter . | . . . . Parts Self-Destructed 10 | . . . 10 Prevented . | . . . . Parts Restored . | . . . . Kills | -11 -10 -10 -10 ------- Run | Yrd Mat Min Sub Combat Hostiles Destroyed 17 | . 5 6 6 Melee 8 | . . 2 6 Guns 9 | . 5 4 . Classes Destroyed 5 | 1 2 1 1 Builder 1 | . . 1 . Tunneler 4 | 2 . 2 . Swarmer 10 | . 3 3 4 Grunt 5 | . 2 3 . Subdweller 2 | . . . 2 Best Kill Streak 4 | 2 3 2 4 Combat Bots Only 4 | . 3 2 4 Max Kills in Single Turn 1 | 1 1 1 1 Gunslinging . | . . . . Exploded . | . . . . Melee 1 | . . 1 1 Uniques/NPCs Destroyed . | . . . . Combat | -11 -10 -10 -10 -------- Run | Yrd Mat Min Sub Hostile Shots Fired 134 | . 29 26 79 Missed 43 | . 7 5 31 Hits 91 | . 22 21 48 Projectile 91 | . 22 21 48 Critical Strikes 1 | . . 1 . Damage Taken 727 | . 176 188 363 Core 264 | . 47 41 176 Absorbed by Shields . | . . . . Ignored by Resistances 227 | . 57 61 109 Core Remaining (%) 100 | 100 . . . Volleys Fired 39 | 5 13 18 3 Largest 2 | 2 2 2 1 Hottest 85 | 40 40 85 50 Shots Fired 52 | 10 17 22 3 Gun 52 | 10 17 22 3 Cannon . | . . . . Launcher . | . . . . Special . | . . . . Kinetic 31 | 10 17 4 . Thermal 21 | . . 18 3 Explosive . | . . . . Electromagnetic . | . . . . Robot Hit Streak 8 | 3 8 7 6 Robot Miss Streak 2 | 2 2 2 1 Penetration Max . | . . . . Secondary Targets 2 | . 2 . . Max Gunslinging Chain 1 | . 1 . . Shots Hit Robots 56 | 5 13 24 14 Core Hits 27 | 2 8 11 6 Critical Kills . | . . . . Critical Parts Destroyed . | . . . . Critical Strikes . | . . . . Melee Attacks 23 | . . 8 15 Impact . | . . . . Slashing 23 | . . 8 15 Piercing . | . . . . Sneak Attacks 3 | . . 3 . Combat Hostiles . | . . . . Follow-up Attacks . | . . . . Damage Inflicted 1267 | 63 169 638 397 Guns 507 | 63 169 241 34 Cannons . | . . . . Explosions . | . . . . Melee 760 | . . 397 363 Ramming . | . . . . Kinetic 247 | 63 169 15 . Thermal 260 | . . 226 34 Explosive . | . . . . Electromagnetic . | . . . . Impact . | . . . . Slashing 760 | . . 397 363 Piercing . | . . . . Highest Corruption . | . . . . Average Corruption . | . . . . Corruption Purged . | . . . . Corruption Blocked . | . . . . Overload Shots . | . . . . Overflow Damage 56 | . . 42 14 Projectiles . | . . . . Explosions . | . . . . Melee 56 | . . 42 14 Knockbacks . | . . . . Impact . | . . . . Kinetic . | . . . . Secondary . | . . . . Self-Inflicted Damage . | . . . . Shots . | . . . . Rammed . | . . . . Targets Rammed . | . . . . Kicked . | . . . . Crushed . | . . . . Highest Temperature 117 | . 5 117 . Average Temperature 42 | . 5 44 . Received Heat Transfer 306 | . 90 120 96 Siege Activations . | . . . . Martial Activations . | . . . . Shielding Activations . | . . . . Robots Disrupted . | . . . . Combat Hostiles . | . . . . Robots Corrupted . | . . . . Combat Hostiles . | . . . . Parts Fried . | . . . . Impact Corruptions . | . . . . Robots Melted . | . . . . Combat Hostiles . | . . . . Parts Melted 1 | . . 1 . Heat Transferred 629 | . . 555 74 Parts Sabotaged . | . . . . Parts Stolen . | . . . . Parts Stripped . | . . . . Power Chain Reactions . | . . . . Alert | -11 -10 -10 -10 ------- Run | Yrd Mat Min Sub Maximum Alert Level . | . . . . Low Security (%) 100 | 100 100 100 . Level 1 . | . . . . Level 2 . | . . . . Level 3 . | . . . . Level 4 . | . . . . Level 5 . | . . . . High Security . | . . . . Max Security . | . . . . Peak Influence 70 | 5 70 55 . Initial . | . . . . Average 13 | . 20 12 . Influence Increases 573 | 10 127 236 200 Destroy 0b10 Robot/C 300 | . 100 120 80 Destroy 0b10 Robot/NC 25 | 10 . 15 . Destroy Leader 50 | . 20 30 . Successful Hack 18 | . 7 11 . Lose Combat Pursuer 180 | . . 60 120 Influence Decreases 533 | 10 127 236 160 Time Decay 533 | 10 127 236 160 Squads Dispatched 1 | . 1 . . Investigation 1 | . 1 . . Extermination . | . . . . Reinforcement . | . . . . Assault . | . . . . Garrison . | . . . . Intercept . | . . . . Searches Triggered . | . . . . Construction Impeded . | . . . . Haulers Reinforced . | . . . . Active Scanning Responses . | . . . . Cargo Convoy Interrupts . | . . . . Stealth | -11 -10 -10 -10 --------- Run | Yrd Mat Min Sub Distress Signals . | . . . . Communications Jammed . | . . . . Distress Signals . | . . . . Times Spotted 31 | . 7 10 14 Peak Tracking Total 6 | . 3 3 6 Tactical Retreats 6 | . . 3 3 Traps | -11 -10 -10 -10 ------- Run | Yrd Mat Min Sub Traps Triggered 1 | . 1 . . Indirectly . | . . . . Trap Hack Attempts . | . . . . Triggered . | . . . . Disarmed . | . . . . Reprogrammed . | . . . . Reused . | . . . . Traps Extracted . | . . . . Installed . | . . . . Triggered . | . . . . Machines | -11 -10 -10 -10 ---------- Run | Yrd Mat Min Sub Machines Disabled . | . . . . Max in Single Turn . | . . . . Machines Repaired . | . . . . Machines Dismantled . | . . . . Machines Sabotaged . | . . . . Overloaded Fab Kills . | . . . . Hacking | -11 -10 -10 -10 --------- Run | Yrd Mat Min Sub Machines Accessed 3 | . 2 1 . Terminals 3 | . 2 1 . Fabricators . | . . . . Repair Stations . | . . . . Recycling Units . | . . . . Scanalyzers . | . . . . Garrison Access . | . . . . Total Hacks 12 | . 8 4 . Successful 8 | . 6 2 . Failed 4 | . 2 2 . Catastrophic . | . . . . Database Lockouts . | . . . . Manual 10 | . 6 4 . Terminals 12 | . 8 4 . Fabricators . | . . . . Repair Stations . | . . . . Recycling Units . | . . . . Scanalyzers . | . . . . Garrison Access . | . . . . Terminal Hacks 4 | . 2 2 . Branch Access Points 2 | . 1 1 . Emergency Access Points 1 | . . 1 . Locate Traps 1 | . 1 . . Fabricator Hacks . | . . . . Repair Station Hacks . | . . . . Recycling Unit Hacks . | . . . . Scanalyzer . | . . . . Garrison Access Hacks . | . . . . Unauthorized Hacks 4 | . 4 . . Terminals 4 | . 4 . . Track 2 | . 2 . . Botnet 2 | . 2 . . Fabricators . | . . . . Repair Stations . | . . . . Recycling Units . | . . . . Scanalyzers . | . . . . Garrison Access . | . . . . Data Cores Recovered . | . . . . Used . | . . . . Hacking Detections 1 | . . 1 . Full Trace Events . | . . . . Feedback Events . | . . . . Feedback Blocked . | . . . . Robot Schematics Acquired . | . . . . Robots Built . | . . . . Authchips . | . . . . Time . | . . . . Total Robot Build Rating . | . . . . Part Schematics Acquired . | . . . . Parts Built . | . . . . Authchips . | . . . . Time . | . . . . Total Part Build Rating . | . . . . Part Studies Acquired . | . . . . Parts Repaired . | . . . . Time . | . . . . Parts Recycled . | . . . . Recycled Matter . | . . . . Retrieved Matter . | . . . . Retrieved Components . | . . . . Parts Scanalyzed . | . . . . Part Schematics Acquired . | . . . . Parts Damaged . | . . . . Bothacking | -11 -10 -10 -10 ------------ Run | Yrd Mat Min Sub Used RIF Installer . | . . . . Robots Hacked . | . . . . Non-combat . | . . . . Combat . | . . . . Robot Hacks Applied . | . . . . Relay Couplers Released . | . . . . Fabnet Peak Effective % . | . . . . Robots Rewired . | . . . . Allies Hacked . | . . . . Hacks Repelled . | . . . . Allies | -11 -10 -10 -10 -------- Run | Yrd Mat Min Sub Total Allies . | . . . . Largest Group . | . . . . Highest-Rated Group . | . . . . Highest-Rated Ally . | . . . . Total Orders . | . . . . Ally Attacks . | . . . . Total Damage . | . . . . Kills . | . . . . Allies Corrupted . | . . . . Allies Melted . | . . . . Intel | -11 -10 -10 -10 ------- Run | Yrd Mat Min Sub Active Infowar (turns) 1746 | 22 369 912 443 Sensors 1578 | . 223 912 443 Terrain 133 | 22 111 . . ECM 35 | . 35 . . Robot Analysis Total . | . . . . Derelict Logs Recovered 1 | . . 1 . Drone Launches . | . . . . Drone Recoveries . | . . . . Exploration | -11 -10 -10 -10 ------------- Run | Yrd Mat Min Sub Turns Passed 1852 | 116 370 912 454 Spaces Moved 1475 | 83 304 725 363 Core 10 | 7 . 3 . Treads . | . . . . Legs . | . . . . Wheels 1440 | 76 304 722 338 Hover . | . . . . Flight 25 | . . . 25 Fastest Speed 50 | 50 100 100 100 Average Speed 103 | 102 100 100 112 Slowest Speed 285 | 200 100 250 285 Overloaded Moves . | . . . . Propulsion Burnouts . | . . . . Robots Hopped . | . . . . Potential Cave-ins . | . . . . Cave-ins Triggered . | . . . . Exploration Rate (%) 43 | 4 39 99 31 Regions Visited 3 Branch Regions 2 Pre-discovered Areas 2 | . . 2 . Known Exits Taken 1 | . 1 . . Unknown Exits Taken 2 | 1 . 1 . Scrap Searched 2 | . . 2 . Spaces Dug . | . . . . Terrain Destroyed . | . . . . Melee . | . . . . Projectile . | . . . . AOE . | . . . . Terrain Rammed . | . . . . Walls Destroyed . | . . . . Machines Disabled . | . . . . Actions | -11 -10 -10 -10 --------- Run | Yrd Mat Min Sub Total 1723 | 100 355 878 390 Wait 147 | . 23 122 2 Move 1472 | 82 303 724 363 Hop . | . . . . Pick Up 13 | 6 6 1 . Fast Attach 14 | 7 2 2 3 Attach 2 | . 1 1 . Detach 1 | . 1 . . Swap 1 | . . . 1 Drop 11 | . 6 2 3 Fire 39 | 5 13 18 3 Melee 23 | . . 8 15 Ram . | . . . . Kick . | . . . . Crush . | . . . . Escape Stasis . | . . . . Rewire . | . . . . Trap . | . . . . Miscellaneous . | . . . . Route ------- -11/Scrapyard -10/Materials (discovered 3 exits: [*Mat] / *Min x2) -10/Mines (discovered 3 exits: [*Mat x2] / [*Sub]) -10/Subcaves (discovered 3 exits: [*Mat x2] / [*Rec]) History --------- Turn | Location | Event 22 | -11/Scrapyard | Discovered new exit (range 16) 117 | -11/Scrapyard | Entered Materials 260 | -10/Materials | Discovered new exit (range 13) 262 | -10/Materials | Discovered new exit (range 12) 278 | -10/Materials | Identified exit to Mines 309 | -10/Materials | Build established: Mutant 487 | -10/Materials | Entered Mines 488 | -10/Mines | Learned location of Storage (-8) 488 | -10/Mines | Met a Derelict bent on vengeance 659 | -10/Mines | A weapon hastily lodged in a ceiling crevice suddenly fell to the ground 726 | -10/Mines | Discovered new exit (range 5) 883 | -10/Mines | Found a Scrap Suit stashed away for nefarious purposes 886 | -10/Mines | Found Scrap Suit 1050 | -10/Mines | Discovered new exit (range 8) 1069 | -10/Mines | Discovered new exit (range 14) 1399 | -10/Mines | Entered Subcaves 1400 | -10/Subcaves | Approached by a straggling Scientist 1405 | -10/Subcaves | Discovered new exit (range 10) 1423 | -10/Subcaves | Ambushed by Subdwellers from Twisted Machinery 1435 | -10/Subcaves | Core integrity fell below 50% 1475 | -10/Subcaves | Shifting Twisted Machinery released Barrage Gun 1529 | -10/Subcaves | Discovered new exit (range 11) 1541 | -10/Subcaves | Core integrity fell below 20% 1671 | -10/Subcaves | Discovered new exit (range 4) 1853 | -10/Subcaves | Destroyed by DS-QCW(R) with Subdweller Laser Last Messages --------------- 9G-N55(c): "I think it's somewhere northeast of here" 01552_ Flight Unit fries itself beyond repair. 01552_ S-10 Pest destroyed. 01554_ Acquired 10 matter. 01555_ S-10 Pest destroyed. 01559_ Acquired Flight Unit. 01563_ Lgt. Assault Rifle fries itself beyond repair. 01567_ Flight Unit fries itself beyond repair. 01572_ Lgt. Assault Rifle fries itself beyond repair. 9G-N55(c): "I think it's somewhere northeast of here" 01664_ Dropped Sensor Array. 01671_ EXIT=FOUND 01675_ Acquired Sensor Array. 9G-N55(c): "I think it's somewhere northeast of here" 01716_ Dropped Particle Gun. 9G-N55(c): "I think it's somewhere northeast of here" 01767_ AB-OSP(u) tweaks Twisted Machinery. 01782_ Acquired 9 matter. 9G-N55(c): "I think it's somewhere east of here" 01825_ Acquired 15 matter. Map ----- +----------------------------------------------------+ | ?????????????????????????????????????????????????? | | ?????????????????????????????????????????????????? | | ?????????????????????????????????????????????????? | | ?????????????????????????????????????????????????? | | ?????????????????????????????????????????????????? | | ?????????????????????????????????????????????????? | | ?????????????????????????????????????????????????? | | ?????????????????????????????????????????????????? | | ?????????????????????????????????????????????????? | | ??????????????????# ?????????????????????????????? | | ?????????????????## ?????????? #?????????????????? | | ?????????????????# ?????????" #?????????????????? | | ?????????????????# ????????" ???????????????????? | | ????????????????## ?######"#????????????????????? | | ???????????????## ?# "#????????????????????? | | ??????????????## ?## ? "#????????????????????? | | ?????????????## ## ##"" #??????????????? | | ?????????????# #??? #?????????????? | | ?????????????# #?????#### "?????????????? | | ????????????## ##??????????? ??????????? | | ???????????## #?????????? #??????????? | | ???????????# #????????? #??????????? | | ???????????# ##???????# ???????????? | | ???????????## ##?????# " ???????????? | | ????????????# c ##???#[ """???????????? | | ???????????## ##@ #?##" #?????????????? | | ??????????## ## ## #?????????????? | | ??????????# ### R #?????????????? | | ??????????# ##?## R ##?????????????? | | ??????????## #???### ##??????????????? | | ???????????# ###???## ###???????????????? | | ???????????# #?????##?????????????????? | | ???????????# #????????????????????????? | | ???????????# ##????????????????????????? | | ??????????## ## #????????????????????????? | | ??????????# ##? ##????????????????????????? | | ??????????# #?? #?????????????????????????? | | ??????????# ##?? #?????????????????????????? | | ??????????# ##??? #?????????????????????????? | | ??????????## ##???? ?????????????????????????? | | ???????????# #####???# ?????????????????????????? | | ??????????## # ###??##????#???????????????????? | | ??????????# ##????? #???????????????????? | | ??????????## #??# #???????????????????? | | ??????????## ## #???????????????????? | | ??????????# #??????????????????? | | ??????????## ## # #??????????????????? | | ???????????# ### ##? #??????????????????? | | ???????????## #### #????? ?? #?????????????????? | | ????????????##### #????????????????????????????? | +----------------------------------------------------+ Best States ------------- Heat Dissipation 25 Energy Generation 15 Energy Capacity 200 Matter Stores 300 Matter Capacity 300 Sight Range 16 Robot Scan Range 14 Terrain Scan Range 16 Terrain Scan Density 10 ECM Strength 1 Resistance: KI 20 Resistance: TH 20 Resistance: EX 20 Resistance: EM 20 Resistance: I 20 Resistance: S 20 Resistance: P 20 Evasion (%) 40 Offensive Hacking 10 Item Schematics ----------------- None Robot Schematics ------------------ None Fabricated ------------ Nothing Repaired ---------- Nothing Studied --------- None Alien Tech Used ----------------- None Achievements -------------- None Challenges ------------ None Game ------ Seed PlasmaShadingMindspike Manual? 0 Play Time 00:20:57 Cumulative 23.6 hours Start 2026.02.15 @ 17:47:18 End 2026.02.15 @ 18:10:45 Sessions 1 Manual Loads 0 Difficulty Adventurer Special Mode None Game No. 28 Rogue 17 Adventurer 11 Explorer 0 Win Type - Total 0 Types 0/0/0/0/0/0/0/0/0/0 Lore% 11 Gallery% 25 Achievement% 15 Wizard Run 0 Options --------- Layout 0 ASCII 0 Keyboard 0 Movement Mouse Keybinds 0 Fullscreen 1 Font 24/Terminus Map View 183x50 Zoom Use 0% Tactical HUD 1 Map Filters NONE Filters NONE Steam 1 RUN: bea109a5-c33f-40b4-b148-312750dad84a